fUST/lending_fUST_20250518
["ID","MTS","AMOUNT","RATE_DAILY","PERIOD"]
[361478381,1747581041594,-151.0,0.0001473,2]
[361478383,1747581041606,-151.0,0.0001473,2]
[361478385,1747581041616,-179.065925,0.0001473,2]
[361478387,1747581041625,-179.065925,0.0001473,2]
[361478389,1747581041635,-151.0,0.0001473,2]
[361478391,1747581041644,-151.0,0.0001473,2]
[361478393,1747581041653,-500.0,0.0001473,2]
[361478395,1747581041662,-500.0,0.00014764,2]
[361478396,1747581041672,-500.0,0.00014764,2]
[361478398,1747581041681,-500.0,0.00014764,2]
[361478400,1747581041690,-500.0,0.00014764,2]
[361478402,1747581041700,-501.53825745,0.00014764,2]
[361478404,1747581041709,-500.0,0.00014764,2]
[361478406,1747581041718,-500.0,0.00014764,2]
[361478408,1747581041728,-500.0,0.00014764,2]
[361478410,1747581041737,-208.74004019,0.00014764,2]
[361478412,1747581041747,-500.0,0.00014764,2]
[361478414,1747581041756,-501.44768991,0.00014764,2]
[361478416,1747581041766,-151.0,0.00014794,2]
[361478418,1747581041775,-151.0,0.00014794,2]
[361478420,1747581041785,-151.0,0.00014794,2]
[361478422,1747581041794,-154.971527,0.00014794,2]
[361478424,1747581041804,-154.971527,0.00014794,2]
[361478426,1747581041814,-500.59,0.00014794,2]
[361478428,1747581041824,-677.457359,0.00014794,2]
[361478430,1747581041833,-677.457359,0.00014794,2]
[361478432,1747581041843,-151.0,0.00014794,2]
[361478435,1747581041854,-151.0,0.00014794,2]
[361478437,1747581041863,-450.0,0.00014794,2]
[361478439,1747581041873,-1356.411808,0.00014794,2]
[361478440,1747581041882,-1356.411808,0.00014794,2]
[361478442,1747581041891,-450.0,0.00014794,2]
[361478444,1747581041901,-477.17,0.00014794,2]
[361478446,1747581041909,-450.0,0.00014794,2]
[361478448,1747581041919,-450.0,0.00014794,2]
[361478450,1747581041929,-532.33,0.00014794,2]
[361478452,1747581041938,-151.0,0.00014794,2]
[361478454,1747581041947,-867.57,0.00014794,2]
[361478456,1747581041956,-969.45,0.00014794,2]
[361478458,1747581041966,-450.0,0.00014794,2]
[361478460,1747581041976,-450.0,0.00014794,2]
[361478462,1747581041985,-2835.5,0.00014794,2]
[361478464,1747581041995,-5358.41,0.00014794,2]
[361478467,1747581042006,-1124.46,0.00014794,2]
[361478469,1747581042019,-467.32,0.00014794,2]
[361478471,1747581042029,-1699.94,0.00014794,2]
[361478473,1747581042038,-151.0,0.00014794,2]
[361478475,1747581042048,-2102.31,0.00014794,2]
[361478477,1747581042057,-450.0,0.00014794,2]
[361478479,1747581042067,-450.0,0.00014794,2]
[361478481,1747581042076,-450.0,0.00014794,2]
[361478483,1747581042086,-450.0,0.00014794,2]
[361478485,1747581042096,-450.0,0.00014794,2]
[361478487,1747581042109,-450.0,0.00014794,2]
[361478489,1747581042118,-450.0,0.00014794,2]
[361478491,1747581042127,-704.0,0.00014794,2]
[361478493,1747581042136,-846.34,0.00014794,2]
[361478495,1747581042146,-450.0,0.00014794,2]
[361478497,1747581042157,-450.0,0.00014794,2]
[361478499,1747581042166,-151.0,0.00014794,2]
[361478501,1747581042176,-450.0,0.00014794,2]
[361478503,1747581042185,-450.0,0.00014794,2]
[361478505,1747581042195,-1146.45,0.00014794,2]
[361478507,1747581042204,-1483.49,0.00014794,2]
[361478509,1747581042213,-167.06,0.00014794,2]
[361478511,1747581042223,-775.23,0.00014794,2]
[361478513,1747581042232,-500.0,0.00014822,2]
[361478515,1747581042242,-500.0,0.00014846,2]
[361478517,1747581042252,-500.0,0.00014846,2]
[361478519,1747581042261,-500.0,0.00014846,2]
[361478521,1747581042270,-500.0,0.00014846,2]
[361478523,1747581042281,-189.087624,0.000149,2]
[361478525,1747581042291,-228.984425,0.00014931,2]
[361478527,1747581042300,-158.55,0.00014931,2]
[361478529,1747581042310,-158.55,0.00014931,2]
[361478531,1747581042319,-284.636306,0.00014931,2]
[361478533,1747581042328,-450.0,0.00014931,2]
[361478535,1747581042338,-450.0,0.00014931,2]
[361478537,1747581042347,-477.17,0.00014931,2]
[361478539,1747581042358,-450.0,0.00014931,2]
[361478541,1747581042367,-450.0,0.00014931,2]
[361478543,1747581042376,-867.57,0.00014931,2]
[361478545,1747581042385,-969.45,0.00014931,2]
[361478547,1747581042395,-450.0,0.00014931,2]
[361478550,1747581042405,-450.0,0.00014931,2]
[361478552,1747581042414,-2835.5,0.00014931,2]
[361478554,1747581042424,-5358.41,0.00014931,2]
[361478556,1747581042434,-1124.46,0.00014931,2]
[361478558,1747581042443,-467.32,0.00014931,2]
[361478560,1747581042453,-1699.94,0.00014931,2]
[361478562,1747581042465,-2102.31,0.00014931,2]
[361478564,1747581042474,-450.0,0.00014931,2]
[361478566,1747581042484,-450.0,0.00014931,2]
[361478568,1747581042494,-164.67,0.00014931,2]
[361478570,1747581042503,-563.98901904,0.00014931,2]
[361478572,1747581042513,-450.0,0.00014931,2]
[361478574,1747581042523,-450.0,0.00014931,2]
[361478576,1747581042533,-450.0,0.00014931,2]
[361478578,1747581042542,-704.0,0.00014931,2]
[361478580,1747581042552,-846.34,0.00014931,2]
[361478582,1747581042561,-450.0,0.00014931,2]
[361478584,1747581042571,-571.54,0.00014931,2]
[361478586,1747581042581,-450.0,0.00014931,2]
[361478588,1747581042590,-450.0,0.00014931,2]
[361478590,1747581042599,-1146.45,0.00014931,2]
[361478592,1747581042611,-1483.49,0.00014931,2]
[361478594,1747581042622,-775.23,0.00014931,2]
[361478596,1747581042632,-189.087624,0.00015,2]
[361478599,1747581042648,-189.087624,0.00015,2]
[361478602,1747581042665,-189.087624,0.00015,2]
[361478605,1747581042679,-2500.0,0.00015,2]
[361478607,1747581042691,-151.0,0.00015,2]
[361478609,1747581042706,-151.0,0.00015,2]
[361478612,1747581042722,-151.0,0.00015,2]
[361478616,1747581042737,-160.0,0.00015,2]
[361478620,1747581042751,-600.0,0.00015041,2]
[361478625,1747581042765,-151.0,0.00015068,2]
[361478627,1747581042780,-151.0,0.00015068,2]
[361478630,1747581042794,-151.0,0.00015068,2]
[361478633,1747581042806,-151.0,0.00015068,2]
[361478636,1747581042820,-450.0,0.00015068,2]
[361478640,1747581042834,-151.0,0.00015068,2]
[361478643,1747581042848,-450.0,0.00015068,2]
[361478647,1747581042862,-151.0,0.00015068,2]
[361478649,1747581042873,-151.0,0.00015068,2]
[361478651,1747581042885,-477.17,0.00015068,2]
[361478654,1747581042896,-450.0,0.00015068,2]
[361478658,1747581042910,-518.94,0.00015068,2]
[361478662,1747581042924,-867.57,0.00015068,2]
[361478665,1747581042936,-969.45,0.00015068,2]
[361478667,1747581042950,-168.214247,0.00015068,2]
[361478670,1747581042964,-450.0,0.00015068,2]
[361478672,1747581042978,-450.0,0.00015068,2]
[361478675,1747581042988,-2835.5,0.00015068,2]
[361478677,1747581042999,-5358.41,0.00015068,2]
[361478679,1747581043010,-1124.46,0.00015068,2]
[361478682,1747581043023,-467.32,0.00015068,2]
[361478684,1747581043038,-1699.94,0.00015068,2]
[361478686,1747581043049,-2102.31,0.00015068,2]
[361478689,1747581043060,-450.0,0.00015068,2]
[361478691,1747581043072,-450.0,0.00015068,2]
[361478693,1747581043086,-450.0,0.00015068,2]
[361478695,1747581043096,-450.0,0.00015068,2]
[361478698,1747581043111,-450.0,0.00015068,2]
[361478700,1747581043122,-704.0,0.00015068,2]
[361478702,1747581043134,-846.34,0.00015068,2]
[361478705,1747581043146,-170.64765325,0.00015068,2]
[361478707,1747581043158,-450.0,0.00015068,2]
[361478709,1747581043170,-450.0,0.00015068,2]
[361478712,1747581043182,-1146.45,0.00015068,2]
[361478714,1747581043195,-151.0,0.00015068,2]
[361478716,1747581043208,-1483.49,0.00015068,2]
[361478718,1747581043220,-775.23,0.00015068,2]
[361478721,1747581043231,-151.0,0.00015141,2]
[361478723,1747581043242,-151.0,0.00015141,2]
[361478725,1747581043254,-6633.02380595,0.00015141,2]
[361478727,1747581043267,-1000.0,0.00015159,2]
[361478730,1747581043279,-500.0,0.00015159,2]
[361478732,1747581043290,-1000.0,0.00015159,2]
[361478734,1747581043302,-189.087624,0.00015205,2]
[361478738,1747581043323,-189.087622,0.00015205,2]
[361478741,1747581043341,-153.020571,0.00015205,2]
[361478743,1747581043357,-151.0,0.00015205,2]
[361478746,1747581043373,-168.507938,0.00015205,2]
[361478749,1747581043387,-815.327103,0.00015205,2]
[361478751,1747581043402,-815.327103,0.00015205,2]
[361478754,1747581043416,-450.0,0.00015205,2]
[361478756,1747581043430,-450.0,0.00015205,2]
[361478760,1747581043444,-477.17,0.00015205,2]
[361478762,1747581043457,-316.45,0.00015205,2]
[361478765,1747581043471,-867.57,0.00015205,2]
[361478768,1747581043484,-969.45,0.00015205,2]
[361478771,1747581043498,-450.0,0.00015205,2]
[361478774,1747581043511,-450.0,0.00015205,2]
[361478776,1747581043524,-2835.5,0.00015205,2]
[361478778,1747581043537,-5358.41,0.00015205,2]
[361478781,1747581043549,-1124.46,0.00015205,2]
[361478783,1747581043561,-467.32,0.00015205,2]
[361478785,1747581043573,-1699.94,0.00015205,2]
[361478788,1747581043585,-2102.31,0.00015205,2]
[361478790,1747581043597,-450.0,0.00015205,2]
[361478792,1747581043610,-450.0,0.00015205,2]
[361478795,1747581043622,-450.0,0.00015205,2]
[361478797,1747581043633,-450.0,0.00015205,2]
[361478799,1747581043646,-450.0,0.00015205,2]
[361478802,1747581043658,-704.0,0.00015205,2]
[361478804,1747581043671,-846.34,0.00015205,2]
[361478806,1747581043683,-387.96,0.00015205,2]
[361478809,1747581043696,-450.0,0.00015205,2]
[361478811,1747581043707,-1146.45,0.00015205,2]
[361478813,1747581043721,-1483.49,0.00015205,2]
[361478816,1747581043733,-775.23,0.00015205,2]
[361478818,1747581043746,-151.0,0.00015205,2]
[361478820,1747581043758,-151.0,0.00015205,2]
[361478822,1747581043770,-1000.0,0.00015218,2]
[361478825,1747581043781,-1000.0,0.00015228,2]
[361478827,1747581043794,-1000.0,0.00015228,2]
[361478829,1747581043805,-1000.0,0.00015228,2]
[361478832,1747581043817,-1000.0,0.00015228,2]
[361478834,1747581043829,-205.04318499,0.00015236,2]
[361478836,1747581043841,-502.41900722,0.00015236,2]
[361478838,1747581043852,-1000.0,0.00015236,2]
[361478841,1747581043863,-1000.0,0.00015236,2]
[361478843,1747581043876,-151.0,0.00015284,2]
[361478845,1747581043888,-151.0,0.00015284,2]
[361478847,1747581043899,-151.0,0.00015284,2]
[361478850,1747581043911,-151.0,0.000153,2]
[361478852,1747581043923,-1000.0,0.00015312,2]
[361478854,1747581043934,-1000.0,0.00015312,2]
[361478856,1747581043945,-1000.0,0.00015312,2]
[361478859,1747581043954,-994.24378014,0.00015312,2]
[361478862,1747581043963,-151.0,0.00015342,2]
[361478865,1747581043972,-179.065925,0.00015342,2]
[361478885,1747581044144,-179.065925,0.00015342,2]
[361478888,1747581044165,-151.0,0.00015342,2]
[361478890,1747581044175,-151.0,0.00015342,2]
[361478892,1747581044187,-151.0,0.00015342,2]
[361478894,1747581044197,-151.0,0.00015342,2]
[361478896,1747581044206,-154.971527,0.00015342,2]
[361478898,1747581044216,-154.971527,0.00015342,2]
[361478900,1747581044225,-677.457359,0.00015342,2]
[361478902,1747581044234,-677.457359,0.00015342,2]
[361478904,1747581044243,-151.0,0.00015342,2]
[361478905,1747581044254,-151.0,0.00015342,2]
[361478906,1747581044264,-450.0,0.00015342,2]
[361478907,1747581044274,-1356.411808,0.00015342,2]
[361478908,1747581044290,-1356.411808,0.00015342,2]
[361478909,1747581044300,-450.0,0.00015342,2]
[361478910,1747581044309,-477.17,0.00015342,2]
[361478911,1747581044318,-867.57,0.00015342,2]
[361478912,1747581044327,-969.45,0.00015342,2]
[361478913,1747581044336,-450.0,0.00015342,2]
[361478914,1747581044346,-450.0,0.00015342,2]
[361478915,1747581044356,-2835.5,0.00015342,2]
[361478916,1747581044365,-5358.41,0.00015342,2]
[361478917,1747581044374,-1124.46,0.00015342,2]
[361478918,1747581044383,-467.32,0.00015342,2]
[361478919,1747581044392,-1699.94,0.00015342,2]
[361478920,1747581044401,-2102.31,0.00015342,2]
[361478921,1747581044410,-450.0,0.00015342,2]
[361478922,1747581044420,-450.0,0.00015342,2]
[361478923,1747581044430,-450.0,0.00015342,2]
[361478924,1747581044439,-263.87775397,0.00015342,2]
[361478925,1747581044448,-450.0,0.00015342,2]
[361478926,1747581044458,-704.0,0.00015342,2]
[361478927,1747581044467,-846.34,0.00015342,2]
[361478928,1747581044476,-450.0,0.00015342,2]
[361478929,1747581044485,-1146.45,0.00015342,2]
[361478930,1747581044495,-1483.49,0.00015342,2]
[361478931,1747581044504,-775.23,0.00015342,2]
[361478932,1747581044514,-1000.0,0.00015394,2]
[361478934,1747581044523,-1000.0,0.00015394,2]
[361478936,1747581044533,-450.0,0.00015479,2]
[361478938,1747581044542,-450.0,0.00015479,2]
[361478940,1747581044551,-151.0,0.00015479,2]
[361478942,1747581044561,-477.17,0.00015479,2]
[361478944,1747581044570,-867.57,0.00015479,2]
[361478946,1747581044580,-969.45,0.00015479,2]
[361478948,1747581044590,-151.0,0.00015479,2]
[361478950,1747581044599,-450.0,0.00015479,2]
[361478952,1747581044610,-450.0,0.00015479,2]
[361478954,1747581044619,-2835.5,0.00015479,2]
[361478956,1747581044629,-5358.41,0.00015479,2]
[361478958,1747581044639,-1124.46,0.00015479,2]
[361478960,1747581044649,-467.32,0.00015479,2]
[361478962,1747581044658,-1699.94,0.00015479,2]
[361478964,1747581044668,-2102.31,0.00015479,2]
[361478966,1747581044677,-450.0,0.00015479,2]
[361478968,1747581044686,-450.0,0.00015479,2]
[361478970,1747581044696,-281.25,0.00015479,2]
[361478972,1747581044706,-450.0,0.00015479,2]
[361478974,1747581044715,-704.0,0.00015479,2]
[361478976,1747581044724,-846.34,0.00015479,2]
[361478978,1747581044734,-450.0,0.00015479,2]
[361478980,1747581044743,-1146.45,0.00015479,2]
[361478982,1747581044752,-1483.49,0.00015479,2]
[361478984,1747581044762,-775.23,0.00015479,2]
[361478986,1747581044771,-6633.02380595,0.0001559,2]
[361478988,1747581044781,-158.55,0.0001559,2]
[361478990,1747581044790,-158.55,0.0001559,2]
[361478992,1747581044799,-151.0,0.0001559,2]
[361478994,1747581044809,-151.0,0.00015616,2]
[361478996,1747581044818,-450.0,0.00015616,2]
[361478998,1747581044827,-151.0,0.00015616,2]
[361479000,1747581044836,-450.0,0.00015616,2]
[361479002,1747581044846,-151.0,0.00015616,2]
[361479004,1747581044856,-151.0,0.00015616,2]
[361479006,1747581044865,-477.17,0.00015616,2]
[361479008,1747581044875,-151.0,0.00015616,2]
[361479010,1747581044884,-867.57,0.00015616,2]
[361479012,1747581044894,-969.45,0.00015616,2]
[361479014,1747581044903,-450.0,0.00015616,2]
[361479016,1747581044912,-450.0,0.00015616,2]
[361479018,1747581044922,-2835.5,0.00015616,2]
[361479020,1747581044931,-5358.41,0.00015616,2]
[361479022,1747581044941,-1124.46,0.00015616,2]
[361479024,1747581044950,-467.32,0.00015616,2]
[361479026,1747581044959,-1699.94,0.00015616,2]
[361479028,1747581044969,-2102.31,0.00015616,2]
[361479030,1747581044978,-450.0,0.00015616,2]
[361479031,1747581044987,-450.0,0.00015616,2]
[361479032,1747581044996,-450.0,0.00015616,2]
[361479033,1747581045006,-704.0,0.00015616,2]
[361479034,1747581045015,-846.34,0.00015616,2]
[361479035,1747581045025,-450.0,0.00015616,2]
[361479037,1747581045034,-1146.45,0.00015616,2]
[361479039,1747581045043,-1483.49,0.00015616,2]
[361479041,1747581045053,-775.23,0.00015616,2]
[361479043,1747581045062,-151.0,0.00015616,2]
[361479045,1747581045071,-151.0,0.00015616,2]
[361479047,1747581045080,-823.0,0.0001563,2]
[361479049,1747581045090,-165.78476889,0.00015676,2]
[361479051,1747581045099,-151.0,0.000157,2]
[361479053,1747581045112,-405.16507239,0.00015707,2]
[361479055,1747581045122,-1500.0,0.00015707,2]
[361479057,1747581045131,-151.0,0.00015753,2]
[361479059,1747581045141,-151.0,0.00015753,2]
[361479061,1747581045151,-151.0,0.00015753,2]
[361479063,1747581045160,-815.327103,0.00015753,2]
[361479065,1747581045169,-815.327103,0.00015753,2]
[361479066,1747581045178,-351.84,0.00015753,2]
[361479068,1747581045187,-450.0,0.00015753,2]
[361479070,1747581045197,-477.17,0.00015753,2]
[361479072,1747581045206,-151.0,0.00015753,2]
[361479074,1747581045215,-867.57,0.00015753,2]
[361479076,1747581045225,-969.45,0.00015753,2]
[361479078,1747581045235,-450.0,0.00015753,2]
[361479080,1747581045244,-450.0,0.00015753,2]
[361479082,1747581045254,-2835.5,0.00015753,2]
[361479084,1747581045264,-5358.41,0.00015753,2]
[361479086,1747581045273,-1124.46,0.00015753,2]
[361479088,1747581045283,-467.32,0.00015753,2]
[361479090,1747581045292,-1699.94,0.00015753,2]
[361479092,1747581045302,-2102.31,0.00015753,2]
[361479094,1747581045311,-382.14,0.00015753,2]
[361479096,1747581045320,-450.0,0.00015753,2]
[361479098,1747581045329,-299.55,0.00015753,2]
[361479100,1747581045340,-704.0,0.00015753,2]
[361479102,1747581045349,-846.34,0.00015753,2]
[361479105,1747581045362,-151.0,0.00015753,2]
[361479107,1747581045371,-450.0,0.00015753,2]
[361479108,1747581045381,-1146.45,0.00015753,2]
[361479110,1747581045390,-1483.49,0.00015753,2]
[361479112,1747581045400,-775.23,0.00015753,2]
[361479114,1747581045410,-1500.0,0.00015766,2]
[361479116,1747581045419,-207.4,0.00015769,2]
[361479118,1747581045429,-503.57840558,0.00015776,2]
[361479120,1747581045438,-1500.0,0.00015776,2]
[361479122,1747581045449,-505.30963114,0.00015776,2]
[361479124,1747581045458,-1500.0,0.00015776,2]
[361479126,1747581045468,-186.35833873,0.00015784,2]
[361479128,1747581045477,-1500.0,0.00015784,2]
[361479130,1747581045487,-1500.0,0.0001586,2]
[361479132,1747581045497,-1500.0,0.0001586,2]
[361479134,1747581045507,-1500.0,0.0001586,2]
[361479136,1747581045517,-151.0,0.0001589,2]
[361479138,1747581045527,-220.718008,0.0001589,2]
[361479140,1747581045536,-151.0,0.0001589,2]
[361479141,1747581045547,-151.0,0.0001589,2]
[361479143,1747581045556,-151.0,0.0001589,2]
[361479145,1747581045566,-151.0,0.0001589,2]
[361479149,1747581045575,-151.0,0.0001589,2]
[361479151,1747581045586,-677.457359,0.0001589,2]
[361479153,1747581045595,-677.457359,0.0001589,2]
[361479154,1747581045604,-151.0,0.0001589,2]
[361479156,1747581045614,-151.0,0.0001589,2]
[361479158,1747581045623,-1356.411808,0.0001589,2]
[361479159,1747581045632,-1356.411808,0.0001589,2]
[361479160,1747581045643,-450.0,0.0001589,2]
[361479161,1747581045653,-477.17,0.0001589,2]
[361479162,1747581045662,-867.57,0.0001589,2]
[361479163,1747581045672,-969.45,0.0001589,2]
[361479164,1747581045681,-450.0,0.0001589,2]
[361479165,1747581045691,-450.0,0.0001589,2]
[361479166,1747581045701,-2835.5,0.0001589,2]
[361479167,1747581045710,-5358.41,0.0001589,2]
[361479169,1747581045719,-1124.46,0.0001589,2]
[361479170,1747581045729,-467.32,0.0001589,2]
[361479172,1747581045738,-1699.94,0.0001589,2]
[361479173,1747581045747,-2102.31,0.0001589,2]
[361479174,1747581045757,-450.0,0.0001589,2]
[361479176,1747581045766,-704.0,0.0001589,2]
[361479178,1747581045775,-846.34,0.0001589,2]
[361479179,1747581045785,-342.54,0.0001589,2]
[361479181,1747581045794,-1146.45,0.0001589,2]
[361479182,1747581045803,-1483.49,0.0001589,2]
[361479184,1747581045813,-775.23,0.0001589,2]
[361479186,1747581045822,-151.0,0.000159,2]
[361479188,1747581045831,-151.0,0.000159,2]
[361479190,1747581045841,-1500.0,0.00015918,2]
[361479192,1747581045850,-500.0,0.00015942,2]
[361479193,1747581045859,-1500.0,0.00015942,2]
[361479195,1747581045868,-12500.0,0.00015982,2]
[361479196,1747581045877,-151.0,0.00015991,2]
[361479197,1747581045887,-12500.0,0.00015991,2]
[361479198,1747581045896,-5000.0,0.00016,2]
[361479199,1747581045905,-5000.0,0.00016,2]
[361479200,1747581045914,-5000.0,0.00016,2]
[361479201,1747581045924,-5000.0,0.00016,2]
[361479202,1747581045933,-5000.0,0.00016,2]
[361479203,1747581045942,-2000.00083938,0.00016,2]
[361479204,1747581045952,-3000.0,0.00016,2]
[361479205,1747581045961,-151.0,0.00016,2]
[361479206,1747581045970,-151.0,0.00016,2]
[361479207,1747581045979,-179.065925,0.00016,2]
[361479208,1747581045988,-179.065925,0.00016,2]
[361479209,1747581045997,-151.0,0.00016,2]
[361479210,1747581046006,-154.971527,0.00016,2]
[361479211,1747581046015,-154.971527,0.00016,2]
[361479212,1747581046025,-12500.0,0.00016,2]
[361479213,1747581046034,-151.0,0.00016,2]
[361479214,1747581046043,-151.0,0.00016,2]
[361479215,1747581046052,-151.0,0.00016,2]
[361479216,1747581046061,-151.0,0.00016,2]
[361479217,1747581046071,-151.0,0.00016,2]
[361479218,1747581046081,-151.0,0.00016,2]
[361479219,1747581046091,-151.0,0.00016,2]
[361479220,1747581046100,-3000.0,0.0001601,2]
[361479221,1747581046113,-3000.0,0.0001602,2]
[361479222,1747581046122,-151.0,0.0001602,2]
[361479223,1747581046131,-208.323631,0.0001602,2]
[361479224,1747581046141,-151.0,0.00016027,2]
[361479225,1747581046151,-151.0,0.00016027,2]
[361479226,1747581046161,-158.55,0.00016027,2]
[361479227,1747581046170,-158.55,0.00016027,2]
[361479228,1747581046180,-151.0,0.00016027,2]
[361479229,1747581046190,-450.0,0.00016027,2]
[361479230,1747581046199,-477.17,0.00016027,2]
[361479231,1747581046208,-228.175514,0.00016027,2]
[361479232,1747581046217,-867.57,0.00016027,2]
[361479233,1747581046227,-969.45,0.00016027,2]
[361479234,1747581046236,-450.0,0.00016027,2]
[361479235,1747581046247,-450.0,0.00016027,2]
[361479236,1747581046256,-2835.5,0.00016027,2]
[361479237,1747581046266,-5358.41,0.00016027,2]
[361479238,1747581046275,-1124.46,0.00016027,2]
[361479239,1747581046286,-467.32,0.00016027,2]
[361479240,1747581046295,-1699.94,0.00016027,2]
[361479241,1747581046304,-2102.31,0.00016027,2]
[361479242,1747581046314,-450.0,0.00016027,2]
[361479243,1747581046323,-704.0,0.00016027,2]
[361479245,1747581046333,-846.34,0.00016027,2]
[361479247,1747581046343,-1146.45,0.00016027,2]
[361479248,1747581046352,-1483.49,0.00016027,2]
[361479251,1747581046362,-775.23,0.00016027,2]
[361479252,1747581046371,-3000.0,0.0001603,2]
[361479254,1747581046381,-6633.02380595,0.00016038,2]
[361479256,1747581046390,-3000.0,0.0001604,2]
[361479257,1747581046399,-3000.0,0.0001605,2]
[361479258,1747581046409,-3000.0,0.0001606,2]
[361479259,1747581046418,-3000.0,0.0001607,2]
[361479260,1747581046428,-3000.0,0.0001608,2]
[361479261,1747581046437,-815.327103,0.0001608,2]
[361479262,1747581046446,-815.327103,0.0001608,2]
[361479263,1747581046456,-3000.0,0.0001609,2]
[361479264,1747581046465,-3000.0,0.000161,2]
[361479265,1747581046474,-3000.0,0.0001611,2]
[361479266,1747581046484,-151.0,0.0001611,2]
[361479267,1747581046494,-151.0,0.0001611,2]
[361479268,1747581046503,-151.0,0.0001611,2]
[361479269,1747581046513,-3000.0,0.0001612,2]
[361479270,1747581046522,-3000.0,0.0001613,2]
[361479271,1747581046532,-3000.0,0.0001614,2]
[361479272,1747581046542,-3000.0,0.0001615,2]
[361479274,1747581046554,-151.0,0.0001615,2]
[361479276,1747581046563,-3000.0,0.0001616,2]
[361479278,1747581046573,-151.0,0.0001616,2]
[361479280,1747581046582,-151.0,0.0001616,2]
[361479282,1747581046591,-151.0,0.00016164,2]
[361479284,1747581046601,-151.0,0.00016164,2]
[361479286,1747581046612,-151.0,0.00016164,2]
[361479288,1747581046621,-153.527194,0.00016164,2]
[361479290,1747581046632,-154.971527,0.00016164,2]
[361479292,1747581046641,-154.971527,0.00016164,2]
[361479294,1747581046650,-677.457359,0.00016164,2]
[361479296,1747581046660,-677.457359,0.00016164,2]
[361479298,1747581046669,-151.0,0.00016164,2]
[361479300,1747581046678,-151.0,0.00016164,2]
[361479302,1747581046687,-1356.411808,0.00016164,2]
[361479304,1747581046696,-1356.411808,0.00016164,2]
[361479306,1747581046706,-385.19,0.00016164,2]
[361479308,1747581046715,-477.17,0.00016164,2]
[361479309,1747581046725,-500.0,0.00016164,2]
[361479311,1747581046734,-500.0,0.00016164,2]
[361479313,1747581046743,-328.86463527,0.00016164,2]
[361479315,1747581046752,-500.0,0.00016164,2]
[361479317,1747581046762,-500.0,0.00016164,2]
[361479320,1747581046771,-500.0,0.00016164,2]
[361479322,1747581046780,-500.0,0.00016164,2]
[361479324,1747581046789,-500.0,0.00016164,2]
[361479326,1747581046799,-500.0,0.00016164,2]
[361479328,1747581046808,-500.0,0.00016164,2]
[361479330,1747581046817,-500.0,0.00016164,2]
[361479331,1747581046827,-500.0,0.00016164,2]
[361479333,1747581046836,-500.0,0.00016164,2]
[361479335,1747581046846,-500.0,0.00016164,2]
[361479338,1747581046856,-867.57,0.00016164,2]
[361479339,1747581046864,-500.0,0.00016164,2]
[361479341,1747581046874,-200.0,0.00016164,2]
[361479344,1747581046883,-500.0,0.00016164,2]